Cogmind - Beta 16.1 @@@ ROGUE MODE // 2026.03.10 @ 06:10:57 Player: +Jones Result: Destroyed by P5-IZ6(R) with Subdweller Machine Gun Performance ------------- Evolutions (0) 0 Regions Visited (2) 400 Robots Destroyed (39) 195 Value Destroyed (815) 815 Prototype IDs (16) 320 Alien Tech Used (0) 0 Bonus (0) 0 TOTAL SCORE: 1730 Bonus ------- None Cogmind --------- Core Integrity 0/250 Matter 147/300 Energy 200/200 System Corruption 0% Temperature Cool (0) Movement Treading (160) Location -10/Subcaves Parts ------- > --- POWER (1) -------- Subdweller Power Source > --- PROPULSION (2) --- Light Treads Light Treads > --- UTILITY (2) ------ Scrap Shield > --- WEAPON (2) ------- Battle Rifle Maul > --- INVENTORY (5) ---- Flightbrick Subdweller Shrapnel Launcher Peak State ------------ > --- POWER ------------ Subdweller Power Source > --- PROPULSION ------- Light Treads Light Treads > --- UTILITY ---------- Scrap Shield > --- WEAPON ----------- Battle Rifle Subdweller Shrapnel Launcher > --- INVENTORY -------- Flightbrick Maul [Rating: 15] Favorites ----------- Power Light Ion Engine Engine Light Ion Engine Propulsion Light Treads Treads Light Treads Utility Seismic Detector Device Seismic Detector Storage Medium Storage Unit Protection Scrap Shield Weapon Light Assault Rifle Energy Gun Subdweller Laser Energy Cannon Subdweller Beam Cannon Ballistic Gun Light Assault Rifle Ballistic Cannon Light Cannon Launcher Subdweller Shrapnel Launcher Impact Weapon Maul Build | -11 -10 -10 ------- Run | Yrd Mat Sub Slots Evolved . | . . . Power . | . . . Propulsion . | . . . Utility . | . . . Weapon . | . . . Parts Attached 25 | 8 8 9 Power 3 | 1 1 1 Engine 3 | 1 1 1 Core . | . . . Reactor . | . . . Propulsion 6 | 2 2 2 Treads 6 | 2 2 2 Leg . | . . . Wheel . | . . . Hover . | . . . Flight . | . . . Utility 6 | 2 2 2 Device 2 | 1 1 . Storage 2 | 1 1 . Processor . | . . . Hackware . | . . . Protection 2 | . . 2 Artifact . | . . . Weapon 10 | 3 3 4 Energy Gun 2 | 1 . 1 Energy Cannon 1 | . . 1 Ballistic Gun 3 | 2 . 1 Ballistic Cannon 1 | . 1 . Launcher 2 | . 1 1 Special Weapon . | . . . Impact Weapon 1 | . 1 . Slashing Weapon . | . . . Piercing Weapon . | . . . Special Melee Weapon . | . . . Unidentified Prototypes . | . . . Parts Lost 3 | . . 3 Power 1 | . . 1 Propulsion . | . . . Utility 1 | . . 1 Weapon 1 | . . 1 Highest Loss Streak 1 | . . 1 To Critical Strikes . | . . . Average Backups 7 | 1 8 5 Power . | . . . Propulsion 1 | . 1 1 Utility 1 | . 2 . Weapon 3 | 1 4 2 Tool/Special . | . . . Unused Backups 6 | . 2 4 Power . | . . . Propulsion 2 | . . 2 Utility 2 | . 1 1 Weapon 2 | . 1 1 Tool/Special . | . . . Average Slot Usage (%) 90 | . 99 78 Engine 8 | . 13 2 Treads 28 | . 28 28 Device 8 | . 14 . Storage 10 | . 14 6 Protection 5 | . . 12 Energy Gun 1 | . 1 3 Energy Cannon 1 | . . 2 Ballistic Gun 13 | . 14 11 Ballistic Cannon 1 | . 3 . Launcher 2 | . . 6 Impact Weapon 7 | . 9 4 Peak Build Rating 15 | 7 9 15 Average Rating 9 | 4 8 10 On Entrance 5 | . 7 9 Avg Prop Armor Cover (%) . | . . . Naked Turns . | . . . Heaviest Build 33 | 11 18 33 Greatest Support 40 | 40 40 40 Greatest Overweight (x) . | . . . Average Overweight (x) . | . . . Largest Inventory Capacity 10 | 8 10 10 Average Capacity 8 | 6 8 7 Most Carried 10 | 4 10 10 Average Carried 7 | 1 8 7 Final Capacity 10 | 8 10 5 Final Carried 10 | 4 10 5 Class Distribution -------------------- 98% | Mutant Dominant Class ---------------- Mutant | -10/Materials Mutant | -10/Subcaves Resources | -11 -10 -10 ----------- Run | Yrd Mat Sub Matter Collected 1011 | 280 389 342 Remotely . | . . . Salvage Created 1006 | 152 525 329 Parts 55 | 9 31 15 Haulers Intercepted 2 | . 2 . Recyclers Shooed 2 | 1 1 . Parts Field Recycled . | . . . Retrieved Matter . | . . . Parts Self-Destructed 5 | . . 5 Prevented . | . . . Parts Restored . | . . . Kills | -11 -10 -10 ------- Run | Yrd Mat Sub Combat Hostiles Destroyed 23 | . 11 12 Melee 2 | . 1 1 Guns 4 | . 3 1 Cannons 2 | . . 2 AOE 12 | . 5 7 Classes Destroyed 12 | 2 7 3 Worker 1 | . 1 . Builder 4 | . 4 . Tunneler 3 | 3 . . Hauler 2 | . 2 . Recycler 2 | 1 1 . Operator 1 | . 1 . Watcher 3 | . 3 . Swarmer 7 | . 3 4 Grunt 8 | . 8 . Sentry 1 | . . 1 Artisan 1 | . . 1 Subdweller 7 | . . 7 Best Kill Streak 6 | 2 6 4 Combat Bots Only 4 | . 4 4 Max Kills in Single Turn 4 | 1 4 4 Gunslinging . | . . . Exploded 4 | . 2 4 Melee 1 | . 1 1 Uniques/NPCs Destroyed . | . . . Combat | -11 -10 -10 -------- Run | Yrd Mat Sub Hostile Shots Fired 87 | . 34 53 Missed 28 | . 9 19 Hits 59 | . 25 34 Projectile 59 | . 25 34 AOE 4 | . . 4 Damage Taken 1124 | . 371 753 Core 251 | . 50 201 Absorbed by Shields . | . . . Core Remaining (%) 100 | 100 . . Volleys Fired 98 | 10 48 40 Largest 2 | 2 2 2 Hottest 140 | 40 60 140 Shots Fired 146 | 20 77 49 Gun 94 | 20 58 16 Cannon 18 | . 14 4 Launcher 34 | . 5 29 Special . | . . . Kinetic 90 | 20 57 13 Thermal 25 | . 15 10 Explosive 31 | . 5 26 Electromagnetic . | . . . Robot Hit Streak 16 | 8 16 7 Robot Miss Streak 3 | 1 3 1 Penetration Max . | . . . Secondary Targets . | . . . Shots Hit Robots 104 | 16 61 27 Core Hits 53 | 7 29 17 Critical Kills 1 | . 1 . Critical Parts Destroyed 3 | . 3 . Critical Strikes 6 | . 4 2 Destroy 2 | . 1 1 Smash 4 | . 3 1 Melee Attacks 54 | . 36 18 Impact 54 | . 36 18 Slashing . | . . . Piercing . | . . . Sneak Attacks 4 | . 4 . Combat Hostiles 1 | . 1 . Follow-up Attacks . | . . . Damage Inflicted 3113 | 133 1826 1154 Guns 669 | 133 352 184 Cannons 179 | . 70 109 Explosions 1120 | . 644 476 Melee 1145 | . 760 385 Ramming . | . . . Kinetic 531 | 133 299 99 Thermal 317 | . 123 194 Explosive 1120 | . 644 476 Electromagnetic . | . . . Impact 1145 | . 760 385 Slashing . | . . . Piercing . | . . . Highest Corruption . | . . . Average Corruption . | . . . Corruption Purged . | . . . Corruption Blocked . | . . . Overload Shots . | . . . Overflow Damage 426 | . 369 57 Projectiles . | . . . Explosions 26 | . 12 14 Melee 400 | . 357 43 Knockbacks 4 | . 4 . Impact 4 | . 4 . Kinetic . | . . . Secondary . | . . . Self-Inflicted Damage 105 | . 74 31 Shots 4 | . 3 1 Rammed . | . . . Targets Rammed . | . . . Kicked . | . . . Crushed . | . . . Highest Temperature 58 | . 58 26 Average Temperature 18 | . 19 14 Received Heat Transfer 288 | . 132 156 Siege Activations . | . . . Martial Activations . | . . . Shielding Activations . | . . . Robots Disrupted . | . . . Combat Hostiles . | . . . Robots Corrupted 4 | . 3 1 Combat Hostiles 3 | . 2 1 Parts Fried 6 | . 6 . Impact Corruptions 13 | . 10 3 Robots Melted . | . . . Combat Hostiles . | . . . Parts Melted . | . . . Heat Transferred 523 | . 275 248 Parts Sabotaged . | . . . Parts Stolen . | . . . Parts Stripped . | . . . Power Chain Reactions . | . . . Alert | -11 -10 -10 ------- Run | Yrd Mat Sub Maximum Alert Level . | . . . Low Security (%) 100 | 100 100 . Level 1 . | . . . Level 2 . | . . . Level 3 . | . . . Level 4 . | . . . Level 5 . | . . . High Security . | . . . Max Security . | . . . Peak Influence 160 | 5 160 . Initial . | . . . Average 62 | . 65 . Influence Increases 737 | 20 527 190 Destroy 0b10 Robot/C 320 | . 220 100 Destroy 0b10 Robot/NC 80 | 20 60 . Destroy Leader 50 | . 50 . Successful Hack 47 | . 47 . Select Force Hacks 60 | . 60 . Destroy Structure 45 | . 45 . Lose Combat Pursuer 135 | . 45 90 Influence Decreases 737 | 20 431 286 Entered New Map 47 | . . 47 Time Decay 670 | 20 431 219 Lost Part 20 | . . 20 Squads Dispatched 3 | . 3 . Investigation 2 | . 2 . Extermination . | . . . Reinforcement 1 | . 1 . Assault . | . . . Garrison . | . . . Intercept . | . . . Searches Triggered . | . . . Construction Impeded . | . . . Haulers Reinforced . | . . . Active Scanning Responses . | . . . Cargo Convoy Interrupts . | . . . Stealth | -11 -10 -10 --------- Run | Yrd Mat Sub Distress Signals 3 | . 3 . Communications Jammed . | . . . Distress Signals . | . . . Times Spotted 40 | . 25 15 Peak Tracking Total 6 | . 5 6 Tactical Retreats 5 | . 2 3 Traps | -11 -10 -10 ------- Run | Yrd Mat Sub Traps Triggered . | . . . Indirectly . | . . . Trap Hack Attempts . | . . . Triggered . | . . . Disarmed . | . . . Reprogrammed . | . . . Reused . | . . . Traps Extracted . | . . . Installed . | . . . Triggered . | . . . Machines | -11 -10 -10 ---------- Run | Yrd Mat Sub Machines Disabled 2 | . 1 1 Max in Single Turn 1 | . 1 1 Machines Repaired . | . . . Machines Dismantled . | . . . Machines Sabotaged . | . . . Overloaded Fab Kills . | . . . Hacking | -11 -10 -10 --------- Run | Yrd Mat Sub Machines Accessed 11 | . 10 1 Terminals 7 | . 7 . Fabricators . | . . . Repair Stations 1 | . 1 . Recycling Units 2 | . 2 . Scanalyzers . | . . . Garrison Access . | . . . Total Hacks 31 | . 30 1 Successful 21 | . 20 1 Failed 10 | . 10 . Catastrophic . | . . . Database Lockouts . | . . . Manual 28 | . 28 . Terminals 27 | . 27 . Fabricators . | . . . Repair Stations 1 | . 1 . Recycling Units 2 | . 2 . Scanalyzers . | . . . Garrison Access . | . . . Terminal Hacks 7 | . 6 1 Robot Analysis 3 | . 3 . Prototype ID Bank 2 | . 2 . Locate Traps 1 | . 1 . Proto ID Catalog 1 | . . 1 Fabricator Hacks . | . . . Repair Station Hacks 1 | . 1 . Refit 1 | . 1 . Recycling Unit Hacks . | . . . Scanalyzer . | . . . Garrison Access Hacks . | . . . Unauthorized Hacks 13 | . 13 . Terminals 11 | . 11 . Assimilate 2 | . 2 . Botnet 3 | . 3 . Operators 1 | . 1 . Skim 5 | . 5 . Fabricators . | . . . Repair Stations . | . . . Recycling Units 2 | . 2 . Tunnel 2 | . 2 . Scanalyzers . | . . . Garrison Access . | . . . Data Cores Recovered . | . . . Used . | . . . Hacking Detections 7 | . 7 . Full Trace Events . | . . . Feedback Events . | . . . Feedback Blocked . | . . . Robot Schematics Acquired . | . . . Robots Built . | . . . Authchips . | . . . Time . | . . . Total Robot Build Rating . | . . . Part Schematics Acquired . | . . . Parts Built . | . . . Authchips . | . . . Time . | . . . Total Part Build Rating . | . . . Part Studies Acquired . | . . . Parts Repaired . | . . . Time . | . . . Parts Recycled . | . . . Recycled Matter . | . . . Retrieved Matter . | . . . Retrieved Components . | . . . Parts Scanalyzed . | . . . Part Schematics Acquired . | . . . Parts Damaged . | . . . Bothacking | -11 -10 -10 ------------ Run | Yrd Mat Sub Used RIF Installer . | . . . Robots Hacked . | . . . Non-combat . | . . . Combat . | . . . Robot Hacks Applied . | . . . Relay Couplers Released . | . . . Fabnet Peak Effective % . | . . . Robots Rewired . | . . . Allies Hacked . | . . . Hacks Repelled . | . . . Allies | -11 -10 -10 -------- Run | Yrd Mat Sub Total Allies 1 | . 1 . Largest Group 1 | . 1 1 Highest-Rated Group 10 | . 10 10 Highest-Rated Ally 10 | . 10 10 Total Orders 3 | . 1 2 STAY 2 | . 1 1 FOLLOW 1 | . . 1 Ally Attacks . | . . . Total Damage . | . . . Kills . | . . . Allies Corrupted . | . . . Allies Melted . | . . . Intel | -11 -10 -10 ------- Run | Yrd Mat Sub Active Infowar (turns) 2601 | 41 2454 106 Seismic 2601 | 41 2454 106 Robot Analysis Total 3 | . 3 . Derelict Logs Recovered . | . . . Drone Launches . | . . . Drone Recoveries . | . . . Exploration | -11 -10 -10 ------------- Run | Yrd Mat Sub Turns Passed 4369 | 139 2457 1773 Spaces Moved 2280 | 61 1260 959 Core 4 | 4 . . Treads 2276 | 57 1260 959 Legs . | . . . Wheels . | . . . Hover . | . . . Flight . | . . . Fastest Speed 50 | 50 160 160 Average Speed 159 | 152 160 160 Slowest Speed 160 | 160 160 160 Overloaded Moves . | . . . Propulsion Burnouts . | . . . Robots Hopped . | . . . Potential Cave-ins 4 | . . 4 Cave-ins Triggered . | . . . Exploration Rate (%) 51 | 3 98 52 Regions Visited 2 Branch Regions 1 Pre-discovered Areas 4 | . 3 1 Known Exits Taken 1 | . 1 . Unknown Exits Taken 1 | 1 . . Scrap Searched . | . . . Spaces Dug 57 | . 33 24 Terrain Destroyed 221 | . 46 175 Melee 19 | . 19 . Projectile . | . . . AOE 202 | . 27 175 Terrain Rammed . | . . . Walls Destroyed . | . . . Machines Disabled . | . . . Actions | -11 -10 -10 --------- Run | Yrd Mat Sub Total 2760 | 86 1559 1115 Wait 239 | 3 171 65 Move 2278 | 60 1259 959 Hop . | . . . Pick Up 20 | 4 12 4 Fast Attach 11 | 7 1 3 Attach 4 | . 2 2 Detach . | . . . Swap 31 | 2 18 11 Drop 25 | . 12 13 Fire 98 | 10 48 40 Melee 54 | . 36 18 Ram . | . . . Kick . | . . . Crush . | . . . Escape Stasis . | . . . Rewire . | . . . Trap . | . . . Miscellaneous . | . . . Route ------- -11/Scrapyard -10/Materials (discovered 6 exits: *Mat x3 / *Min x2 / *Sub) -10/Subcaves (discovered 2 exits: [*Mat x2]) History --------- Turn | Location | Event 8 | -11/Scrapyard | Discovered new exit (range 14) 140 | -11/Scrapyard | Entered Materials 267 | -10/Materials | Discovered new exit (range 5) 305 | -10/Materials | Build established: Mutant 1057 | -10/Materials | Discovered new exit (range 16) 1221 | -10/Materials | Discovered new exit (range 8) 1740 | -10/Materials | Learned location of Mines (-9) 1797 | -10/Materials | Identified exit to Materials 1846 | -10/Materials | Identified exit to Subcaves 1846 | -10/Materials | Identified exit to Mines 1846 | -10/Materials | Learned location of 1 exit from Materials 1885 | -10/Materials | Loaded intel: 11 interactive machine locations 1927 | -10/Materials | Loaded intel: 16 trap records 1953 | -10/Materials | Learned location of 3 exits from Materials 2597 | -10/Materials | Entered Subcaves 2597 | -10/Subcaves | Accompanied by 1 ally 2831 | -10/Subcaves | Shifting Twisted Machinery released Battle Rifle 2831 | -10/Subcaves | Discovered new exit (range 10) 2833 | -10/Subcaves | Shifting Twisted Machinery released Sub. Beam Cannon 3287 | -10/Subcaves | Core integrity fell below 50% 3292 | -10/Subcaves | Core integrity fell below 20% 3400 | -10/Subcaves | Discovered new exit (range 9) 3440 | -10/Subcaves | Learned location of Zion (-7) 3440 | -10/Subcaves | Met a Zionite searching for "candidates" 3506 | -10/Subcaves | Visited 4L-MR0's lab 3529 | -10/Subcaves | Found Flightbrick 4367 | -10/Subcaves | Ambushed by angry Subdweller bent on revenge 4370 | -10/Subcaves | Destroyed by P5-IZ6(R) with Subdweller Machine Gun Last Messages --------------- 03528_ 4L-MR0 mumbles to no one in particular: "Damn Subs sneaking around stealing my stuff." 03529_ 4L-MR0 mumbles: "I'm surprised some of them are even willing to come in here given their fear of my usual visitors." 03529_ Acquired Flightbrick. 03531_ 4L-MR0 mumbles: "Who knows where that last prototype ended up, probably tossed aside somewhere as if it were useless junk..." 03928_ 31-A0K(u) deconstructs Twisted Machinery. 04185_ Acquired 45 matter. 04187_ Acquired 69 matter. 04238_ Acquired Sub. Power Source. 04303_ 31-A0K(u) builds Twisted Machinery. 04351_ 31-A0K(u) cries out in pain. 04351_ 31-A0K(u) destroyed. 04367_ P5-IZ6(R) angrily emerges from the Twisted Machinery. 04367_ P5-IZ6(R): "WEHOME!" Map ----- +----------------------------------------------------+ | ?????????????????????????????????????????????????? | | ?????????????????????????????????????????????????? | | ?????????????????????????????????????????????????? | | ?????????????????????????????????????????????????? | | ?????????????????????????????????????????????????? | | ?????????????????????????????????????????????????? | | ?????????????????????????????????????????????????? | | ?????????????????????????????###?????????????????? | | ????????????????????????????# ##????????????????? | | ??????????????????????????## ?????????????????? | | ?????????????????????????# ??????????????????? | | ???????????????????????## ???????????????????? | | ???????????????#??????? #????????????????????? | | ??????????????## ?####? #?????????????????????? | | ?????????????## ## ### #??????????????????????? | | ?????????????# ## #???????????????????????? | | ?????????????# #???????????????????????? | | ??????????????# #???????????????????????? | | ??????????????# "#???????????????????????? | | ??????????????# " "#?????????????########?? | | ??????????????# % """" ###????????#### ## # #?# | | ??????????????# #####"" ##?????### ## | | ??????????????# ????##" ####### | | ??????????????# ????##" o # | | ????????????? ???###"R ## # # # | | ??????????? ??# "" @ ## # # ## | | ??????????? " ?# " ## " | | ????????? ?# ## " " | | ?????????# #?## ######### " | | ?????????# "??# #???????###### " | | ???????????? #??# ### #???????????# # | | ?????????????? #?## ###### #???????????##### | | ?????????????? # "?# # ####???????????????? | | ??????????????# #?## ##????????????????? | | ??????????????# #??## #????????????????? | | ????##????????# ##??## # ##????????????????? | | ????# #??????## ##??## ## ##????????????????? | | ????# ##???## ##??# ## #????????????????? | | ##### #### #??#### ##????????????????? | | # ## #???## #?????????????????? | | ??# ##???# #?????????????????? | | ?## #####?# ###???????????????? | | ?# ## ### ##??????????????? | | ?# # #??????????????? | | ???# ## ##### ##??????????????? | | ??## ## "##????###???????????????? | | ??# ### ## "##???????????????????????? | | ??## #?## ######?#??????????????????????? | | ???# #??# # ""# #??????????????????????? | | ???## #??# "[ ##?????????????????????? | +----------------------------------------------------+ Best States ------------- Heat Dissipation 25 Energy Generation 15 Energy Capacity 200 Matter Stores 300 Matter Capacity 300 Sight Range 16 Terrain Scan Density 10 Armor Coverage 800 Evasion (%) 40 Recoil Reduction 2 Item Schematics ----------------- None Robot Schematics ------------------ None Fabricated ------------ Nothing Repaired ---------- Nothing Studied --------- None Alien Tech Used ----------------- None Achievements -------------- None Challenges ------------ None Game ------ Seed WeaponsUtilityBox Manual? 0 Play Time 00:26:06 Cumulative 441.6 hours Start 2026.03.10 @ 05:48:56 End 2026.03.10 @ 06:10:57 Sessions 1 Manual Loads 0 Difficulty Rogue Special Mode None Game No. 351 Rogue 351 Adventurer 0 Explorer 0 Win Type - Total 6 Types 4/0/0/0/0/0/0/2/0/0 Lore% 71 Gallery% 71 Achievement% 58 Wizard Run 0 Options --------- Layout 1 ASCII 0 Keyboard 0 Movement Mouse Keybinds 0 Fullscreen 1 Font 32/SmallcapsGlow Map View 50x35 Zoom Use 0% Tactical HUD 1 Map Filters NONE Filters NONE Steam 1 RUN: 3fb1e494-1f3e-4f7a-a0f3-bd6531e734bf